fUST/lending_fUST_20240115
["ID","MTS","AMOUNT","RATE_DAILY","PERIOD"]
[311675447,1705313440236,-18940.54627858,0.000289,2]
[311675448,1705313440245,-1891.09041532,0.00028999,2]
[311675449,1705313440254,-2454.18896115,0.00029,2]
[311675450,1705313440263,-831.81165951,0.00029,2]
[311675451,1705313440272,-2200.85325309,0.00029,2]
[311675452,1705313440281,-2034.69724894,0.00029,2]
[311675453,1705313440290,-155.0,0.0002917,2]
[311675454,1705313440299,-309.4108809,0.00029315,2]
[311675455,1705313440307,-306.2959332,0.00029315,2]
[311675456,1705313440317,-161.95994916,0.00029417,2]
[311675457,1705313440326,-246.63738554,0.00029417,2]
[311675458,1705313440335,-640.93542022,0.00029417,2]
[311675459,1705313440344,-348.97614086,0.000295,30]
[311675460,1705313440352,-507.44515137,0.0002968,3]
[311675461,1705313440361,-49314.41861174,0.0002979,7]
[311675462,1705313440370,-217.861042,0.0002979,2]
[311675463,1705313440379,-2301.43156,0.0002979,2]
[311675464,1705313440388,-2301.43156,0.0002979,2]
[311675465,1705313440397,-206.84997193,0.00029941,2]
[311675466,1705313440405,-154.91687259,0.00029991,2]
[311675467,1705313440414,-153.85852713,0.00029993,2]
[311675468,1705313440423,-1577.23828043,0.00029998,2]
[311675469,1705313440432,-180.29953251,0.00029999,2]
[311675470,1705313440441,-2731.03435751,0.00029999,5]
[311675471,1705313440451,-16009.41461234,0.00029999,2]
[311675472,1705313440459,-3547.24,0.00029999,2]
[311675473,1705313440468,-212.00277784,0.00029999,2]
[311675474,1705313440477,-1072.7526182,0.0003,2]
[311675475,1705313440486,-5000.0,0.0003,2]
[311675476,1705313440495,-2650.84,0.0003,2]
[311675477,1705313440504,-5000.0,0.0003,2]
[311675478,1705313440513,-1285.53,0.0003,2]
[311675479,1705313440522,-4999.99,0.0003,2]
[311675480,1705313440531,-155.0,0.0003,4]
[311675481,1705313440540,-5000.0,0.0003,2]
[311675482,1705313440549,-5000.0,0.0003,2]
[311675483,1705313440557,-5000.02,0.0003,2]
[311675484,1705313440566,-4999.99,0.0003,2]
[311675485,1705313440575,-5000.0,0.0003,2]
[311675486,1705313440666,-5000.0,0.0003,2]
[311675487,1705313440675,-5000.01,0.0003,2]
[311675488,1705313440683,-4999.99,0.0003,2]
[311675489,1705313440692,-4999.99,0.0003,2]
[311675490,1705313440701,-4999.99,0.0003,2]
[311675491,1705313440710,-4999.99,0.0003,2]
[311675492,1705313440719,-4999.99,0.0003,2]
[311675493,1705313440729,-4999.99,0.0003,2]
[311675494,1705313440738,-4999.99,0.0003,2]
[311675495,1705313440748,-4999.99,0.0003,2]
[311675496,1705313440757,-4999.99,0.0003,2]
[311675497,1705313440766,-3085.8836169,0.0003,2]
[311675498,1705313440781,-1914.1063831,0.0003,2]
[311675500,1705313440790,-2005.19098799,0.0003,2]
[311675501,1705313441163,-1189.78732078,0.0003,2]
[311675502,1705313441227,-1805.01169123,0.0003,2]
[311675503,1705313441236,-548.68619487,0.0003,2]
[311675522,1705313443653,-5922.68,0.0002999,3]
[311675523,1705313443663,-2586.88285864,0.0003,2]
[311675528,1705313446146,-1864.42094649,0.0003,2]
[311675530,1705313446157,-11025.57905351,0.0003,2]
[311675615,1705314632319,-154.9690062,0.0002492,2]
[311675617,1705314632329,-154.9690062,0.0002492,4]
[311675620,1705314632338,-5194.0219876,0.0002492,2]
[311675624,1705314632349,-14481.93799769,0.0002492,2]
[311675627,1705314632359,-154.9690062,0.00024921,2]
[311675629,1705314632368,-1577.23828043,0.00024921,2]
[311675633,1705314632377,-2705.10797595,0.00024921,5]
[311675636,1705314632387,-400.35198,0.00024922,2]
[311675638,1705314632395,-19842.21540701,0.00024922,2]
[311675642,1705314632406,-250.0,0.00024924,2]
[311675645,1705314632415,-7023.36,0.00025114,3]
[311675647,1705314632424,-23832.59163549,0.00025124,2]
[311675649,1705314632433,-8032.93138764,0.00025124,3]
[311675692,1705314638419,-1580.16851554,0.00024919,2]
[311675693,1705314638439,-395.10861236,0.00025124,3]
[311675694,1705314638452,-36916.98061949,0.00025124,2]
[311675695,1705314638462,-10113.64,0.00025125,3]
[311675696,1705314638472,-232.94155232,0.00025132,2]
[311675697,1705314638482,-628.22510289,0.00025132,2]
[311675698,1705314638493,-246.19657285,0.00025132,2]
[311675699,1705314638502,-1230.00469757,0.00025132,2]
[311675700,1705314638515,-155.0,0.00025132,2]
[311675701,1705314638526,-266.26101319,0.00025132,2]
[311675702,1705314638536,-482.66877209,0.00025133,2]
[311675703,1705314638546,-155.01705188,0.00025133,2]
[311675704,1705314638557,-2257.0325121,0.00025137,2]
[311675705,1705314638567,-196.875009,0.00026012,2]
[311675706,1705314638577,-175.00244479,0.00026107,2]
[311675707,1705314638588,-187.65703673,0.00026107,2]
[311675708,1705314638598,-361.02080012,0.00026107,2]
[311675709,1705314638607,-155.01550155,0.00026108,2]
[311675710,1705314638617,-1990.42773149,0.00026113,2]
[311675711,1705314638627,-384.46108,0.00026117,2]
[311675712,1705314638638,-162.79031221,0.00026128,2]
[311675713,1705314638648,-155.20195616,0.00026134,2]
[311675714,1705314638658,-1738.04312491,0.00026135,2]
[311675715,1705314638669,-6761.386153,0.0002622,2]
[311675716,1705314638680,-217.9620188,0.0002654,2]
[311675717,1705314638690,-164.508873,0.00026989,2]
[311675718,1705314638700,-5073.13007023,0.00026996,2]
[311675719,1705314638710,-1112.22182837,0.00026996,2]
[311675720,1705314638720,-688.3625771,0.000277,2]
[311675721,1705314638731,-155.0,0.00027805,2]
[311675722,1705314638743,-363.05654356,0.000279,2]
[311675723,1705314638756,-153.0,0.00028493,2]
[311675724,1705314638767,-203.0085679,0.00028493,2]
[311675725,1705314638777,-153.0,0.00028493,2]
[311675726,1705314638787,-153.0,0.00028493,2]
[311675727,1705314638799,-198.8577961,0.00028493,2]
[311675728,1705314638811,-153.0,0.00028493,2]
[311675729,1705314638823,-200.0,0.00028718,15]
[311675730,1705314638833,-50000.0,0.00028799,3]
[311675731,1705314638845,-50000.0,0.00028799,3]
[311675732,1705314638856,-50000.0,0.00028799,3]
[311675733,1705314638865,-51789.65181804,0.00028799,3]
[311675734,1705314638875,-3547.24,0.00028804,2]
[311675735,1705314638886,-3547.24,0.00028804,2]
[311675736,1705314638896,-3547.24,0.00028804,2]
[311675737,1705314638906,-3547.24,0.00028804,2]
[311675738,1705314638916,-3547.24,0.00028804,2]
[311675739,1705314638927,-3547.24,0.00028804,2]
[311675740,1705314638936,-3547.24,0.00028804,2]
[311675741,1705314638947,-3547.26,0.00028804,2]
[311675742,1705314638956,-500.0,0.00028804,2]
[311675743,1705314638966,-500.0,0.00028804,2]
[311675744,1705314638975,-500.0,0.00028804,2]
[311675745,1705314638986,-500.0,0.00028804,2]
[311675746,1705314638997,-500.0,0.00028804,2]
[311675747,1705314639007,-500.0,0.00028804,2]
[311675748,1705314639022,-879.37162388,0.00028804,2]
[311675749,1705314639033,-500.0,0.00028804,2]
[311675750,1705314639044,-500.0,0.00028804,2]
[311675751,1705314639056,-879.37162388,0.00028804,2]
[311675752,1705314639066,-300.0,0.00028804,2]
[311675753,1705314639076,-251.50029702,0.00028804,2]
[311675754,1705314639087,-500.0,0.00028804,2]
[311675755,1705314639097,-879.37162388,0.00028804,2]
[311675756,1705314639107,-500.0,0.00028804,2]
[311675757,1705314639117,-500.0,0.00028804,2]
[311675758,1705314639126,-500.0,0.00028804,2]
[311675759,1705314639137,-879.37162388,0.00028804,2]
[311675760,1705314639147,-500.0,0.00028804,2]
[311675761,1705314639157,-500.0,0.00028804,2]
[311675762,1705314639167,-516.87307517,0.00028804,2]
[311675763,1705314639177,-879.37162388,0.00028804,2]
[311675764,1705314639187,-450.78200746,0.00028804,2]
[311675765,1705314639199,-500.0,0.00028804,2]
[311675766,1705314639210,-879.37162388,0.00028804,2]
[311675767,1705314639220,-879.37162388,0.00028804,2]
[311675768,1705314639231,-500.0,0.00028804,2]
[311675769,1705314639243,-500.0,0.00028804,2]
[311675770,1705314639254,-879.37162388,0.00028804,2]
[311675771,1705314639267,-546.9407251,0.00028804,2]
[311675772,1705314639278,-500.0,0.00028804,2]
[311675773,1705314639289,-879.37162388,0.00028804,2]
[311675774,1705314639299,-879.37162388,0.00028804,2]
[311675775,1705314639309,-500.0,0.00028804,2]
[311675776,1705314639318,-500.0,0.00028804,2]
[311675777,1705314639328,-879.37162388,0.00028804,2]
[311675778,1705314639338,-500.0,0.00028804,2]
[311675779,1705314639350,-500.0,0.00028804,2]
[311675780,1705314639360,-500.0,0.00028804,2]
[311675781,1705314639369,-879.37162388,0.00028804,2]
[311675782,1705314639380,-879.37162388,0.00028804,2]
[311675783,1705314639390,-500.0,0.00028804,2]
[311675784,1705314639400,-500.0,0.00028804,2]
[311675785,1705314639410,-879.37162388,0.00028804,2]
[311675786,1705314639420,-500.0,0.00028804,2]
[311675787,1705314639429,-879.37162388,0.00028804,2]
[311675788,1705314639439,-500.0,0.00028804,2]
[311675789,1705314639449,-879.37162388,0.00028804,2]
[311675790,1705314639460,-879.37162388,0.00028804,2]
[311675791,1705314639470,-500.0,0.00028804,2]
[311675792,1705314639480,-500.0,0.00028804,2]
[311675793,1705314639490,-879.37162388,0.00028804,2]
[311675794,1705314639500,-500.0,0.00028804,2]
[311675795,1705314639513,-879.37162388,0.00028804,2]
[311675796,1705314639524,-500.0,0.00028804,2]
[311675797,1705314639534,-879.37162388,0.00028804,2]
[311675798,1705314639545,-500.0,0.00028804,2]
[311675799,1705314639557,-500.0,0.00028804,2]
[311675800,1705314639567,-879.37162388,0.00028804,2]
[311675801,1705314639576,-500.0,0.00028804,2]
[311675802,1705314639586,-879.37162388,0.00028804,2]
[311675803,1705314639595,-500.0,0.00028804,2]
[311675804,1705314639605,-611.17834376,0.00028804,2]
[311675805,1705314639615,-500.0,0.00028804,2]
[311675806,1705314639625,-879.37162388,0.00028804,2]
[311675807,1705314639636,-879.37162388,0.00028804,2]
[311675808,1705314639645,-879.37162388,0.00028804,2]
[311675809,1705314639655,-500.0,0.00028804,2]
[311675810,1705314639664,-879.37162388,0.00028804,2]
[311675811,1705314639674,-879.37162388,0.00028804,2]
[311675812,1705314639683,-879.37162388,0.00028804,2]
[311675813,1705314639692,-67004.80824045,0.00028805,4]
[311675814,1705314639702,-40228.71789112,0.00028805,4]
[311675815,1705314639711,-176.15529663,0.00028899,2]
[311675816,1705314639721,-500.0,0.00028999,2]
[311675817,1705314639730,-2454.18896115,0.00029,2]
[311675818,1705314639739,-154.98450155,0.00029,2]
[311675819,1705314639748,-155.0,0.00029175,2]
[311675820,1705314639757,-153.0,0.00029178,2]
[311675821,1705314639769,-153.0,0.00029178,2]
[311675822,1705314639778,-153.0,0.00029178,2]
[311675823,1705314639787,-153.0,0.00029178,2]
[311675824,1705314639797,-153.0,0.00029178,2]
[311675825,1705314639806,-153.2206058,0.00029178,2]
[311675826,1705314639816,-156.2309434,0.00029178,2]
[311675827,1705314639825,-198.8577961,0.00029315,2]
[311675828,1705314639835,-153.0,0.00029315,2]
[311675829,1705314639844,-153.0,0.00029315,2]
[311675830,1705314639853,-153.0,0.00029315,2]
[311675831,1705314639862,-506.19894923,0.00029419,2]
[311675832,1705314639872,-213.64514007,0.00029419,2]
[311675833,1705314639881,-348.97614086,0.000295,30]
[311675834,1705314639891,-507.44515137,0.0002968,3]
[311675835,1705314639900,-879.43811936,0.00029899,2]
[311675836,1705314639909,-1625.54902921,0.00029995,2]
[311675837,1705314639919,-156.94549562,0.00029996,2]
[311675838,1705314639928,-326.91284264,0.00029996,2]
[311675839,1705314639937,-180.29953251,0.00029997,2]
[311675840,1705314639946,-20842.42787433,0.00029997,2]
[311675841,1705314639955,-16009.41461234,0.00029998,2]
[311675842,1705314639965,-5732.4394359,0.00029999,2]
[311675843,1705314639974,-315.00804422,0.00029999,2]
[311675844,1705314639984,-467.14126937,0.00029999,4]
[311675845,1705314639994,-497.83570284,0.00029999,4]
[311675846,1705314640003,-500.0,0.00029999,4]
[311675847,1705314640013,-500.0,0.00029999,4]
[311675848,1705314640022,-500.0,0.00029999,4]
[311675849,1705314640032,-500.0,0.00029999,4]
[311675850,1705314640041,-500.0,0.00029999,4]
[311675851,1705314640050,-500.0,0.00029999,4]
[311675852,1705314640059,-500.0,0.00029999,4]
[311675853,1705314640068,-500.0,0.00029999,4]
[311675854,1705314640078,-500.0,0.00029999,4]
[311675855,1705314640087,-500.0,0.00029999,4]
[311675856,1705314640096,-500.0,0.00029999,4]
[311675857,1705314640105,-500.0,0.00029999,4]
[311675858,1705314640114,-500.0,0.00029999,4]
[311675859,1705314640124,-500.0,0.00029999,4]
[311675860,1705314640133,-500.0,0.00029999,4]
[311675861,1705314640142,-500.0,0.00029999,4]
[311675862,1705314640151,-350.83918165,0.00029999,4]
[311675863,1705314640161,-171.80208972,0.00029999,4]
[311675865,1705314640253,-500.0,0.00029999,4]
[311675866,1705314640264,-600.0,0.00029999,4]
[311675867,1705314640274,-500.0,0.00029999,4]
[311675868,1705314640283,-500.0,0.00029999,4]
[311675869,1705314640293,-500.0,0.00029999,4]
[311675870,1705314640302,-500.0,0.00029999,4]
[311675871,1705314640312,-533.89278777,0.00029999,4]
[311675873,1705314640321,-500.0,0.00029999,4]
[311675875,1705314640330,-500.0,0.00029999,4]
[311675876,1705314640340,-500.0,0.00029999,4]
[311675877,1705314640349,-500.0,0.00029999,4]
[311675878,1705314640358,-500.0,0.00029999,4]
[311675879,1705314640367,-500.0,0.00029999,4]
[311675880,1705314640377,-500.0,0.00029999,4]
[311675881,1705314640386,-202.73433386,0.00029999,4]
[311675882,1705314640395,-400.87154269,0.00029999,4]
[311675883,1705314640404,-497.83570284,0.00029999,4]
[311675884,1705314640414,-500.0,0.00029999,4]
[311675885,1705314640424,-250.0,0.00029999,4]
[311675887,1705314640433,-435.99851807,0.00029999,4]
[311675889,1705314640442,-562.16562428,0.00029999,14]
[311675891,1705314640452,-392827.87342525,0.0003,2]
[311675893,1705314640562,-2259.03502941,0.0003,2]
[311675894,1705314640574,-16212.52851607,0.0003,2]
[311675895,1705314640583,-4999.99,0.0003,2]
[311675896,1705314640592,-4999.99,0.0003,2]
[311675897,1705314640602,-4999.97,0.0003,2]
[311675898,1705314640611,-2364.55,0.0003,2]
[311675899,1705314640620,-718.82710442,0.0003,4]
[311675900,1705314640629,-300.0,0.0003,14]
[311675901,1705314640638,-3085.88,0.0003,2]
[311675902,1705314640648,-5000.0,0.0003,2]
[311675903,1705314640657,-5000.0,0.0003,2]
[311675904,1705314640666,-5000.0,0.0003,2]
[311675905,1705314640675,-5000.0,0.0003,2]
[311675906,1705314640684,-5000.0,0.0003,2]
[311675907,1705314640693,-5000.0,0.0003,2]
[311675908,1705314640703,-5000.0,0.0003,2]
[311675909,1705314640712,-5000.0,0.0003,2]
[311675910,1705314640721,-5000.0,0.0003,2]
[311675911,1705314640731,-5000.0,0.0003,2]
[311675912,1705314640741,-5000.0,0.0003,2]
[311675913,1705314640751,-5000.0,0.0003,2]
[311675914,1705314640760,-5000.0,0.0003,2]
[311675915,1705314640770,-5000.0,0.0003,2]
[311675916,1705314640779,-5000.0,0.0003,2]
[311675917,1705314640788,-5000.0,0.0003,2]
[311675918,1705314640797,-5000.0,0.0003,2]
[311675919,1705314640806,-2116.52152558,0.0003,2]
[311675920,1705314640818,-2883.47847442,0.0003,2]
[311675921,1705314640827,-5000.0,0.0003,2]
[311675922,1705314640836,-5009.05,0.0003,2]
[311675923,1705314640845,-155.0,0.0003,4]
[311675924,1705314640854,-350.93054121,0.0003,2]
[311675925,1705314640864,-410.1520012,0.0003,2]
[311675926,1705314640873,-1351.60839685,0.0003,5]
[311675927,1705314640882,-212.00277784,0.0003,2]
[311675928,1705314640891,-1822.74700439,0.0003,2]
[311675929,1705314640901,-2170.1294719,0.0003,4]
[311675930,1705314640911,-2000.0,0.0003,2]
[311675931,1705314640921,-16199.11927327,0.0003,2]
[311675932,1705314640931,-154.9690062,0.0003,4]
[311675933,1705314640940,-150.0,0.0003,2]
[311675934,1705314640950,-226.0,0.0003,2]
[311675935,1705314640960,-2000.0,0.0003001,2]
[311675936,1705314640969,-2000.0,0.0003002,2]
[311675937,1705314640978,-2000.0,0.0003003,2]
[311675938,1705314640987,-151.75924971,0.00030039,2]
[311675939,1705314640997,-2000.0,0.0003004,2]
[311675940,1705314641007,-2000.0,0.0003005,2]
[311675941,1705314641018,-2000.0,0.0003006,2]
[311675942,1705314641027,-2000.0,0.0003007,2]
[311675943,1705314641037,-2000.0,0.0003008,2]
[311675944,1705314641047,-2000.0,0.0003009,2]
[311675945,1705314641058,-2000.0,0.000301,2]
[311675946,1705314641067,-2000.0,0.0003011,2]
[311675947,1705314641077,-975.74021018,0.0003012,2]
[311675948,1705314641477,-572.31960071,0.00028804,2]
[311675949,1705314641489,-307.05202317,0.00028804,2]
[311675950,1705314641498,-957.65904861,0.00029999,2]
[311675951,1705314641513,-1000.16869191,0.00029999,2]
[311675952,1705314641525,-1589.42225948,0.00029999,2]
[311675954,1705314641534,-748.21094704,0.00029999,2]
[311675978,1705314643390,-153.0,0.00028493,2]
[311675979,1705314643400,-1278.96990872,0.00028789,3]
[311676058,1705315833776,-154.9690062,0.00025654,4]
[311676059,1705315833785,-1079.84176297,0.00025654,2]
[311676060,1705315833797,-2283.99486452,0.00025654,2]
[311676061,1705315833809,-1134.82830938,0.00025654,2]
[311676094,1705315838927,-3451.18480718,0.00025654,2]
[311676095,1705315838936,-5956.47000547,0.00025655,2]
[311676096,1705315838946,-201.568526,0.00026131,2]
[311676097,1705315838955,-479.7132969,0.00026992,2]
[311676098,1705315838964,-10135.33451069,0.000274,2]
[311676099,1705315838973,-688.3625771,0.00027758,2]
[311676100,1705315838983,-155.0,0.00027759,2]
[311676102,1705315838992,-496.2317844,0.000279,2]
[311676104,1705315839001,-200.0,0.00028219,15]
[311676106,1705315839011,-155.0,0.00028495,2]
[311676108,1705315839020,-160.82569621,0.00028496,2]
[311676109,1705315839030,-155.0309938,0.00028497,2]
[311676111,1705315839040,-8100.94,0.00028497,3]
[311676112,1705315839049,-6750.78,0.00028497,3]
[311676114,1705315839058,-9721.13,0.00028498,3]
[311676116,1705315839067,-155.44645526,0.00028498,2]
[311676118,1705315839077,-309.4108809,0.000285,2]
[311676119,1705315839088,-306.2959332,0.000285,2]
[311676120,1705315839097,-155.0,0.00028505,2]
[311676121,1705315839106,-155.0,0.00028505,2]
[311676122,1705315839115,-500.0,0.00028506,2]
[311676123,1705315839125,-323.00558521,0.00028506,2]
[311676125,1705315839134,-16009.41461234,0.00028507,2]
[311676127,1705315839144,-20842.42787433,0.00028507,2]
[311676128,1705315839153,-180.29953251,0.00028507,2]
[311676129,1705315839163,-156.94549562,0.00028507,2]
[311676130,1705315839172,-863.93009296,0.00028507,2]
[311676131,1705315839182,-326.91284264,0.00028507,2]
[311676132,1705315839191,-5732.4394359,0.00028508,2]
[311676133,1705315839200,-12587.27152902,0.00028509,2]
[311676134,1705315839210,-172.22697472,0.00028659,2]
[311676135,1705315839219,-5000.0,0.00028745,5]
[311676136,1705315839229,-4626.54715108,0.00028745,3]
[311676137,1705315839238,-13876.50906508,0.0002875,4]
[311676138,1705315839247,-50000.0,0.00028759,3]
[311676139,1705315839256,-50000.0,0.00028759,3]
[311676140,1705315839265,-63060.27170402,0.00028759,3]
[311676141,1705315839274,-62371.38019948,0.00028767,4]
[311676142,1705315839284,-261.19258853,0.00028789,2]
[311676143,1705315839294,-177.04055147,0.00028789,2]
[311676144,1705315839303,-315.00804422,0.00028795,2]
[311676145,1705315839312,-246.10396651,0.00028796,2]
[311676146,1705315839322,-12810.69122197,0.00028797,2]
[311676147,1705315839332,-7137.6245175,0.00028797,2]
[311676148,1705315839341,-400.04906622,0.00028802,2]
[311676149,1705315839350,-611.30969374,0.00028803,2]
[311676150,1705315839359,-2454.18896115,0.00029,2]
[311676151,1705315839369,-154.98450155,0.00029,2]
[311676152,1705315839378,-155.0,0.00029129,2]
[311676153,1705315839467,-153.0,0.00029178,2]
[311676154,1705315839494,-153.0,0.00029178,2]
[311676155,1705315839503,-153.0,0.00029178,2]
[311676156,1705315839513,-153.0,0.00029178,2]
[311676157,1705315839522,-153.0,0.00029178,2]
[311676158,1705315839531,-153.0,0.00029315,2]
[311676159,1705315839541,-153.0,0.00029315,2]
[311676160,1705315839550,-153.2206058,0.00029315,2]
[311676161,1705315839559,-198.8577961,0.00029315,2]
[311676162,1705315839569,-153.0,0.00029315,2]
[311676163,1705315839579,-153.0,0.00029315,2]
[311676164,1705315839589,-503.89086251,0.00029419,2]
[311676165,1705315839598,-519.48072291,0.00029419,2]
[311676166,1705315839607,-186.53261321,0.0002942,2]
[311676167,1705315839616,-1000.0,0.00029423,7]
[311676168,1705315839625,-348.97614086,0.000295,30]
[311676169,1705315839634,-507.44515137,0.0002968,3]
[311676170,1705315839644,-155.06199718,0.00029998,2]
[311676171,1705315839653,-2730.42723696,0.00029998,5]
[311676172,1705315839662,-155.41425937,0.00029998,2]
[311676173,1705315839671,-562.16562428,0.00029998,14]
[311676174,1705315839680,-274.36755231,0.0003,5]
[311676175,1705315839689,-620.96,0.0003,2]
[311676176,1705315839698,-154.9690062,0.0003,4]
[311676177,1705315839707,-308.058158,0.0003,14]
[311676178,1705315839716,-151.0,0.0003,2]
[311676179,1705315839726,-5039.0,0.0003,2]
[311676180,1705315839735,-879.43811936,0.00030036,2]
[311676181,1705315839744,-1864.150029,0.000301,2]
[311676182,1705315839754,-163.700968,0.000301,2]
[311676183,1705315839763,-197.5089968,0.0003013,2]
[311676184,1705315839772,-1264.094932,0.00030135,4]
[311676185,1705315839782,-500.0,0.00030136,2]
[311676186,1705315839791,-500.0,0.00030136,2]
[311676187,1705315839801,-500.0,0.00030136,2]
[311676188,1705315839810,-500.0,0.00030136,2]
[311676189,1705315839820,-461.637233,0.00030136,2]
[311676190,1705315839829,-500.0,0.00030136,2]
[311676191,1705315839838,-500.0,0.00030136,2]
[311676192,1705315839848,-356.0539899,0.00030136,2]
[311676193,1705315839857,-500.0,0.00030136,2]
[311676194,1705315839866,-500.0,0.00030136,2]
[311676195,1705315839875,-500.0,0.00030136,2]
[311676196,1705315839884,-500.0,0.00030136,2]
[311676197,1705315839893,-500.0,0.00030136,2]
[311676198,1705315839903,-500.0,0.00030136,2]
[311676199,1705315839912,-251.50029702,0.00030136,2]
[311676200,1705315839921,-500.0,0.00030136,2]
[311676201,1705315839930,-194.78845862,0.00030136,2]
[311676202,1705315839940,-500.0,0.00030136,2]
[311676203,1705315839950,-500.0,0.00030136,2]
[311676204,1705315839959,-207.91694694,0.00030136,2]
[311676205,1705315839968,-500.0,0.00030136,2]
[311676206,1705315839978,-500.0,0.00030136,2]
[311676207,1705315839987,-500.0,0.00030136,2]
[311676208,1705315839996,-500.0,0.00030136,2]
[311676209,1705315840005,-500.0,0.00030136,2]
[311676210,1705315840014,-500.0,0.00030136,2]
[311676211,1705315840023,-500.0,0.00030136,2]
[311676212,1705315840032,-500.0,0.00030136,2]
[311676213,1705315840042,-500.0,0.00030136,2]
[311676214,1705315840051,-500.0,0.00030136,2]
[311676215,1705315840060,-500.0,0.00030136,2]
[311676216,1705315840070,-500.0,0.00030136,2]
[311676217,1705315840080,-500.0,0.00030136,2]
[311676218,1705315840091,-500.0,0.00030136,2]
[311676219,1705315840100,-500.0,0.00030136,2]
[311676220,1705315840109,-500.0,0.00030136,2]
[311676221,1705315840118,-500.0,0.00030136,2]
[311676222,1705315840127,-500.0,0.00030136,2]
[311676223,1705315840138,-500.0,0.00030136,2]
[311676224,1705315840147,-500.0,0.00030136,2]
[311676225,1705315840156,-500.0,0.00030136,2]
[311676226,1705315840165,-500.0,0.00030136,2]
[311676227,1705315840174,-500.0,0.00030136,2]
[311676228,1705315840184,-500.0,0.00030136,2]
[311676229,1705315840193,-458.47000916,0.00030136,2]
[311676230,1705315840207,-564.34453352,0.00030136,2]
[311676231,1705315840217,-500.0,0.00030136,2]
[311676232,1705315840226,-500.0,0.00030136,2]
[311676233,1705315840235,-500.0,0.00030136,2]
[311676234,1705315840245,-500.0,0.00030136,2]
[311676235,1705315840255,-500.0,0.00030136,2]
[311676236,1705315840263,-29745.21989655,0.00030136,4]
[311676237,1705315840273,-500.0,0.00030136,2]
[311676238,1705315840283,-156.2309434,0.00030137,2]
[311676239,1705315840293,-306.0,0.00030137,2]
[311676240,1705315840302,-153.0,0.00030137,2]
[311676241,1705315840311,-401.866364,0.00030137,2]
[311676242,1705315840321,-41798.8746468,0.00030137,2]
[311676243,1705315840330,-655.79169339,0.00030137,2]
[311676244,1705315840339,-620.00540415,0.00030409,2]
[311676245,1705315840348,-155.0,0.00030499,2]
[311676246,1705315840358,-151.0,0.00030566,2]
[311676247,1705315840367,-150.5,0.0003066,30]
[311676248,1705315840376,-151.61,0.0003066,30]
[311676249,1705315840386,-535.0,0.00030666,30]
[311676250,1705315840395,-150.5,0.0003067,30]
[311676251,1705315840404,-707.0,0.0003067,30]
[311676252,1705315840414,-150.5,0.0003067,30]
[311676253,1705315840423,-535.0,0.00030676,30]
[311676254,1705315840433,-150.5,0.0003068,30]
[311676255,1705315840442,-707.0,0.0003068,30]
[311676256,1705315840452,-150.5,0.0003068,30]
[311676257,1705315840461,-172.22697471,0.00030686,2]
[311676258,1705315840470,-707.0,0.0003069,30]
[311676259,1705315840480,-241.27,0.0003069,30]
[311676260,1705315840489,-5000.0,0.0003072,7]
[311676261,1705315840499,-643.28378818,0.00030776,4]
[311676262,1705315840508,-179.2579464,0.00030777,4]
[311676263,1705315840518,-155.52017307,0.00030778,4]
[311676264,1705315840528,-262.90251544,0.00030784,4]
[311676265,1705315840538,-1413.42859915,0.00030786,2]
[311676266,1705315840548,-282.83454941,0.00030786,3]
[311676269,1705315840557,-154.98450155,0.00030786,2]
[311676270,1705315840567,-1200.0,0.00030786,4]
[311676271,1705315840577,-270.84411006,0.00030786,30]